bitfinex-derivatives/quotes_BTCF0:USTF0_20251213
["timestamp","ask_amount","ask_price","bid_price","bid_amount"]
[1765652934038,0.05911,90203.0,90202.0,0.06563]
[1765652934237,0.05911,90203.0,90202.0,0.42643]
[1765652934422,0.05911,90203.0,90202.0,0.06563]
[1765652934627,0.05911,90203.0,90202.0,0.42643]
[1765652935537,0.05911,90203.0,90202.0,0.06563]
[1765652935837,0.05911,90203.0,90202.0,0.42643]
[1765652936036,0.05911,90203.0,90202.0,0.06563]
[1765652936238,0.05911,90203.0,90202.0,0.42643]
[1765652940538,0.05911,90203.0,90202.0,0.06563]
[1765652940740,0.05911,90203.0,90202.0,0.42643]
[1765652946044,0.05911,90203.0,90202.0,0.06563]
[1765652946351,0.05911,90203.0,90202.0,0.42643]
[1765652957053,0.05911,90203.0,90202.0,0.06563]
[1765652957245,0.05911,90203.0,90202.0,0.42643]
[1765652965341,0.05911,90203.0,90202.0,0.06563]
[1765652965546,0.05911,90203.0,90202.0,0.42643]
[1765652970755,0.05911,90203.0,90202.0,0.06563]
[1765653000773,0.05911,90203.0,90202.0,0.05659]
[1765653021490,0.05911,90203.0,90202.0,0.07428]
[1765653024695,0.05911,90203.0,90202.0,0.43508]
[1765653026489,0.00016626,90208.0,90207.0,0.06999]
[1765653026694,0.29551296,90223.0,90222.0,0.05713]
[1765653026897,0.06133818,90223.0,90222.0,0.05713]
[1765653027893,0.06233818,90223.0,90222.0,0.05713]
[1765653028694,0.06333818,90223.0,90222.0,0.05713]
[1765653037297,0.14297655,90223.0,90222.0,0.05713]
[1765653046209,0.06333818,90223.0,90222.0,0.05713]
[1765653046711,0.14297871,90223.0,90222.0,0.05713]
[1765653047102,0.07327,90222.0,90221.0,0.2941829]
[1765653047613,0.07327,90222.0,90221.0,0.2831]
[1765653048005,0.07327,90222.0,90221.0,0.31209]
[1765653048814,0.07327,90222.0,90221.0,0.34023]
[1765653049020,0.07427,90222.0,90221.0,0.351313]
[1765653050214,0.15391053,90222.0,90221.0,0.351313]
[1765653052116,0.07427,90222.0,90221.0,0.351313]
[1765653054106,0.05689,90222.0,90221.0,0.351313]
[1765653057628,0.05689,90222.0,90221.0,0.34023]
[1765653057927,0.07481,90222.0,90221.0,0.34023]
[1765653061424,0.07481,90222.0,90221.0,0.2831]
[1765653061813,0.05478,90214.0,90213.0,0.05910626]
[1765653062413,0.13458656,90214.0,90213.0,0.05910626]
[1765653063125,0.13458656,90214.0,90213.0,0.06010626]
[1765653064314,0.05478,90214.0,90213.0,0.06010626]
[1765653066113,0.13458656,90214.0,90213.0,0.06010626]
[1765653066313,0.05478,90214.0,90213.0,0.06010626]
[1765653075934,0.05478,90214.0,90213.0,0.34320626]
[1765653080540,0.44058631,90218.0,90217.0,0.05894]
[1765653080723,0.3608,90218.0,90217.0,0.0700234]
[1765653081130,0.38821,90218.0,90217.0,0.0700234]
[1765653081330,0.41558,90218.0,90217.0,0.0700234]
[1765653082430,0.05478,90218.0,90217.0,0.0700234]
[1765653083141,0.13456631,90218.0,90217.0,0.0700234]
[1765653084236,0.05478,90218.0,90217.0,0.4308234]
[1765653084830,0.05478,90218.0,90217.0,0.6479234]
[1765653093545,0.05478,90218.0,90217.0,0.2871234]
[1765653096550,0.05478,90218.0,90217.0,0.27604]
[1765653109558,0.13456631,90218.0,90217.0,0.27604]
[1765653111762,0.05478,90218.0,90217.0,0.27604]
[1765653112566,0.13456631,90218.0,90217.0,0.27604]
[1765653115669,0.07978631,90218.0,90217.0,0.27604]
[1765653116679,0.03498818,90223.0,90222.0,0.07171]
[1765653117378,0.03498818,90223.0,90222.0,0.35481]
[1765653118382,0.03498818,90223.0,90222.0,0.3658928]
[1765653118571,0.03598818,90223.0,90222.0,0.3658928]
[1765653120984,0.00644818,90223.0,90222.0,0.3658928]
[1765653123779,0.03598818,90223.0,90222.0,0.3658928]
[1765653126278,0.10622144,90223.0,90222.0,0.3658928]
[1765653126583,0.00644818,90223.0,90222.0,0.3658928]
[1765653131374,0.07979761,90226.0,90225.0,0.05486]
[1765653131578,0.74546359,90232.0,90231.0,0.05486]
[1765653131780,0.67229001,90232.0,90231.0,0.05486]
[1765653132181,0.67229001,90232.0,90231.0,0.33796]
[1765653134290,0.67329001,90232.0,90231.0,0.33796]
[1765653135693,0.70283001,90232.0,90231.0,0.33796]
[1765653136590,0.67329001,90232.0,90231.0,0.33796]
[1765653140994,0.001,90232.0,90231.0,0.33796]
[1765653148895,0.79927438,90246.0,90245.0,0.06842]
[1765653149094,0.72509014,90246.0,90245.0,0.06842]
[1765653149489,0.69679014,90246.0,90245.0,0.06842]
[1765653149885,0.72509014,90246.0,90245.0,0.06842]
[1765653150092,0.72509014,90246.0,90245.0,0.07042]
[1765653156704,0.80471452,90246.0,90245.0,0.07042]
[1765653157094,0.72509014,90246.0,90245.0,0.07042]
[1765653158405,0.72609014,90246.0,90245.0,0.06842]
[1765653159105,0.72509014,90246.0,90245.0,0.06842]
[1765653159301,0.72609014,90246.0,90245.0,0.06842]
[1765653166302,0.74047014,90246.0,90245.0,0.06842]
[1765653181014,0.74047014,90246.0,90245.0,0.19382]
[1765653185837,0.74047014,90246.0,90245.0,0.06842]
[1765653198442,0.74047014,90246.0,90245.0,0.04057]
[1765653201753,0.74047014,90246.0,90245.0,0.06799]
[1765653202956,0.74047014,90246.0,90245.0,0.04057]
[1765653213765,0.74047014,90246.0,90245.0,0.06976]
[1765653218669,0.74047014,90246.0,90245.0,0.04057]
[1765653219171,0.74047014,90246.0,90245.0,0.06976]
[1765653220164,0.74047014,90246.0,90245.0,0.04034]
[1765653221579,0.74047014,90246.0,90245.0,0.06953]
[1765653230080,0.74047014,90246.0,90245.0,0.04034]
[1765653240697,0.74047014,90246.0,90245.0,0.06937]
[1765653242598,0.74047014,90246.0,90245.0,0.04034]
[1765653245404,0.72609014,90246.0,90245.0,0.06937]
[1765653245706,0.80592155,90246.0,90245.0,0.06937]
[1765653246404,0.06249014,90246.0,90245.0,0.06937]
[1765653247005,0.06249014,90246.0,90245.0,0.35247]
[1765653251102,0.06249014,90246.0,90245.0,0.71327]
[1765653266522,0.06249014,90246.0,90245.0,0.35247]
[1765653266716,0.06249014,90246.0,90245.0,0.71327]
[1765653266918,0.14226314,90246.0,90245.0,0.71327]
[1765653267219,0.14226314,90246.0,90245.0,0.43017]
[1765653267615,0.14226314,90246.0,90245.0,0.71327]
[1765653273122,0.06249014,90246.0,90245.0,0.71327]
[1765653278427,0.06249014,90246.0,90245.0,0.35247]
[1765653279315,0.06249014,90246.0,90245.0,0.06937]
[1765653279519,0.06249014,90246.0,90245.0,0.35247]
[1765653285931,0.06249014,90246.0,90245.0,0.36871]
[1765653286833,0.14231665,90246.0,90245.0,0.36871]
[1765653295949,0.06249014,90246.0,90245.0,0.36871]
[1765653297743,0.06249014,90246.0,90245.0,0.72951]
[1765653303068,0.06249014,90246.0,90245.0,0.36871]
[1765653305561,0.06249014,90246.0,90245.0,0.72951]
[1765653306957,0.14231774,90246.0,90245.0,0.72951]
[1765653307369,0.14231774,90246.0,90245.0,0.36871]
[1765653307669,0.14231774,90246.0,90245.0,0.72951]
[1765653308368,0.14231774,90246.0,90245.0,0.36871]
[1765653308668,0.14231774,90246.0,90245.0,0.72951]
[1765653312667,0.14231774,90246.0,90245.0,0.36871]
[1765653312969,0.14231774,90246.0,90245.0,0.72951]
[1765653318072,0.14231774,90246.0,90245.0,0.36871]
[1765653318273,0.14231774,90246.0,90245.0,0.72951]
[1765653337683,0.14231774,90246.0,90245.0,0.36871]
[1765653346985,0.06249014,90246.0,90245.0,0.36871]
[1765653356900,0.14231928,90246.0,90245.0,0.36871]
[1765653364208,0.06249014,90246.0,90245.0,0.36871]
[1765653364610,0.07982914,90249.0,90248.0,0.07417]
[1765653364800,0.07982914,90251.0,90250.0,0.07319]
[1765653365709,0.08527833,90252.0,90251.0,0.0857993]
[1765653365912,0.07982914,90252.0,90251.0,0.0857993]
[1765653366100,0.07982914,90252.0,90251.0,0.3688993]
[1765653366302,0.45491,90252.0,90251.0,0.00705405]
[1765653366608,0.45491,90252.0,90229.0,0.01777]
[1765653366609,1.16532765,90252.0,90238.0,0.01777]
[1765653366802,0.40452765,90252.0,90251.0,0.01777]
[1765653366998,1.45728765,90252.0,90251.0,0.01777]
[1765653367307,1.85732765,90252.0,90251.0,0.01777]
[1765653368000,1.85932765,90252.0,90251.0,0.01777]
[1765653376407,1.95890311,90252.0,90251.0,0.01777]
[1765653376808,1.85932765,90252.0,90250.0,0.01777]
[1765653377010,1.55883641,90252.0,90250.0,0.01777]
[1765653377609,1.55883641,90252.0,90249.0,0.01777]
[1765653378511,0.7216,90250.0,90249.0,0.01777]
[1765653379507,0.88346449,90250.0,90249.0,0.01777]
[1765653379707,0.88346449,90250.0,90248.0,0.01777]
[1765653380116,0.88446449,90250.0,90248.0,0.01777]
[1765653387023,0.88446449,90250.0,90248.0,0.01715]
[1765653388016,0.16286449,90250.0,90248.0,0.01715]
[1765653388225,0.7216,90249.0,90248.0,0.01715]
[1765653389421,0.7226,90249.0,90248.0,0.01715]
[1765653394531,0.001,90249.0,90248.0,0.01715]
[1765653394733,0.7226,90249.0,90248.0,0.01715]
[1765653395327,0.7226,90249.0,90248.0,0.00366937]
[1765653396331,0.001,90249.0,90248.0,0.00366937]
[1765653396833,0.7226,90249.0,90248.0,0.00366937]
[1765653397035,0.7226,90249.0,90248.0,0.01715]
[1765653406741,0.001,90249.0,90248.0,0.01715]
[1765653406941,0.7226,90249.0,90244.0,0.0081344]
[1765653407128,0.69204,90248.0,90246.0,0.01715]
[1765653410546,0.7216,90247.0,90246.0,0.01715]
[1765653411843,0.7226,90247.0,90246.0,0.01715]
[1765653415052,0.001,90247.0,90246.0,0.01715]
[1765653415254,0.7226,90247.0,90246.0,0.01715]
[1765653416954,0.7226,90247.0,90245.0,0.00814311]
[1765653417255,0.7226,90247.0,90246.0,0.01723]
[1765653417956,0.7216,90247.0,90246.0,0.01723]
[1765653418157,0.7226,90247.0,90246.0,0.01723]
[1765653424866,0.7226,90247.0,90245.0,0.00814311]
[1765653427072,0.7226,90247.0,90244.0,0.0081344]
[1765653427073,0.03562,90244.0,90243.0,0.00809475]
[1765653427375,0.72762,90244.0,90243.0,0.00809475]
[1765653430869,1.44922,90244.0,90243.0,0.00809475]
[1765653432270,1.45468631,90244.0,90243.0,0.00809475]
[1765653436976,1.45468631,90244.0,90240.0,0.05472]
[1765653436977,1.41906631,90244.0,90240.0,0.05472]
[1765653437277,0.0581,90241.0,90240.0,0.05472]
[1765653437479,0.7797,90241.0,90240.0,0.05472]
[1765653438070,0.82373939,90241.0,90240.0,0.05472]
[1765653438375,0.10213939,90241.0,90240.0,0.05472]
[1765653438672,0.82373939,90241.0,90240.0,0.05472]
[1765653438878,0.8244868,90241.0,90240.0,0.05472]
[1765653440179,0.82336605,90241.0,90240.0,0.05472]
[1765653440676,0.10176605,90241.0,90240.0,0.05472]
[1765653440878,0.75556631,90244.0,90243.0,0.07195]
[1765653441179,1.11636631,90244.0,90243.0,0.07195]
[1765653445584,1.25602259,90244.0,90243.0,0.07195]
[1765653447083,1.11636631,90244.0,90243.0,0.07195]
[1765653456385,0.75556631,90244.0,90243.0,0.07195]
[1765653456588,1.11636631,90244.0,90243.0,0.07195]
[1765653462494,0.75556631,90244.0,90243.0,0.07195]
[1765653462795,1.11636631,90244.0,90243.0,0.07195]
[1765653463094,0.02786,90241.0,90240.0,0.02771]
[1765653463394,0.05623,90237.0,90236.0,0.05558626]
[1765653463597,0.74819,90237.0,90236.0,0.05558626]
[1765653463788,0.74819,90237.0,90236.0,0.08420626]
[1765653464296,1.10899,90237.0,90236.0,0.02787626]
[1765653464493,1.15232263,90237.0,90236.0,0.02787626]
[1765653466095,1.15232263,90237.0,90236.0,0.02887626]
[1765653467111,1.51312263,90237.0,90236.0,0.02887626]
[1765653467611,1.51312263,90237.0,90236.0,0.00116626]
[1765653471711,0.79152263,90237.0,90236.0,0.00116626]
[1765653471912,1.51312263,90237.0,90236.0,0.00116626]
[1765653473511,1.15232263,90237.0,90236.0,0.00116626]
[1765653473715,1.51312263,90237.0,90236.0,0.00116626]
[1765653479519,0.79152263,90237.0,90236.0,0.00116626]
[1765653479710,1.51312263,90237.0,90236.0,0.00116626]
[1765653482722,0.79152263,90237.0,90236.0,0.00116626]
[1765653482911,1.51312263,90237.0,90236.0,0.00116626]
[1765653487526,0.79152263,90237.0,90236.0,0.00116626]
[1765653487727,1.51312263,90237.0,90236.0,0.00116626]
[1765653489528,0.93117891,90237.0,90236.0,0.00116626]
[1765653489732,1.65277891,90237.0,90236.0,0.00116626]
[1765653491522,1.51312263,90237.0,90236.0,0.00116626]
[1765653493431,1.51312263,90237.0,90236.0,0.00029739]
[1765653493730,1.51312263,90237.0,90236.0,0.06006739]
[1765653493933,1.51312263,90237.0,90236.0,0.00029739]
[1765653497135,1.65285705,90237.0,90236.0,0.00029739]
[1765653503432,1.65285705,90237.0,90236.0,0.03015739]
[1765653504947,1.65285705,90237.0,90236.0,0.06006739]
[1765653512558,1.51312263,90237.0,90236.0,0.06006739]
[1765653518458,1.51312263,90237.0,90236.0,0.03015739]
[1765653526964,1.51312263,90237.0,90236.0,0.00743563]
[1765653527261,1.52386263,90237.0,90236.0,0.00743563]
[1765653537386,0.80226263,90237.0,90236.0,0.00743563]
[1765653537588,1.16306263,90237.0,90236.0,0.00743563]
[1765653541676,0.05536,90229.0,90228.0,0.07553]
[1765653541970,1.20784618,90229.0,90228.0,0.07553]
[1765653542879,1.20784618,90229.0,90228.0,0.07753]
[1765653543686,1.20784618,90229.0,90228.0,0.07953]
[1765653544894,1.29556104,90229.0,90228.0,0.07953]
[1765653546692,0.93476104,90229.0,90228.0,0.07953]
[1765653546895,1.30104654,90229.0,90228.0,0.07953]
[1765653547096,1.30104654,90229.0,90228.0,0.0623]
[1765653547395,1.20124036,90229.0,90228.0,0.0623]
[1765653548398,1.30104525,90229.0,90228.0,0.0623]
[1765653549890,1.20124036,90229.0,90228.0,0.0623]
[1765653570607,0.84044036,90229.0,90228.0,0.0623]
[1765653570908,1.20124036,90229.0,90228.0,0.0623]
[1765653572009,0.84044036,90229.0,90228.0,0.0623]
[1765653572210,1.20124036,90229.0,90228.0,0.0623]
[1765653577714,0.84044036,90229.0,90228.0,0.0623]
[1765653578917,0.84044036,90229.0,90228.0,0.0865521]
[1765653579115,0.81244036,90229.0,90228.0,0.0865521]
[1765653579414,0.83997036,90229.0,90228.0,0.0865521]
[1765653592005,0.83997036,90229.0,90228.0,0.0733821]
[1765653602219,0.83997036,90229.0,90228.0,0.0623]
[1765653604823,0.83997036,90229.0,90228.0,0.004]
[1765653612822,0.83997036,90229.0,90228.0,0.03123]
[1765653613128,0.83997036,90229.0,90228.0,0.05919]
[1765653636352,0.84661036,90229.0,90228.0,0.05919]
[1765653642559,0.02732,90229.0,90228.0,0.07205]
[1765653642759,0.05722,90232.0,90231.0,0.07421]
[1765653643065,0.06287539,90232.0,90231.0,0.07421]
[1765653643865,0.06287539,90232.0,90231.0,0.07521]
[1765653644861,0.06287539,90232.0,90231.0,0.07621]
[1765653652065,0.12264205,90232.0,90231.0,0.07621]
[1765653662678,0.09396205,90232.0,90231.0,0.07621]
[1765653663176,0.06199539,90232.0,90231.0,0.05913]
[1765653670172,0.14184679,90232.0,90231.0,0.05913]
[1765653670782,0.06199539,90232.0,90231.0,0.05913]
[1765653671285,0.1361914,90232.0,90231.0,0.05913]
[1765653672184,0.05634,90232.0,90231.0,0.05913]
[1765653675593,0.13616883,90232.0,90231.0,0.05913]
[1765653675791,0.05634,90232.0,90231.0,0.05913]
[1765653682186,0.0598483,90232.0,90231.0,0.05913]
[1765653684098,0.0887683,90232.0,90231.0,0.05913]
[1765653684684,0.1174183,90232.0,90231.0,0.05913]
[1765653686202,0.1174183,90232.0,90231.0,0.41993]
[1765653686500,0.1174183,90232.0,90231.0,0.05913]
[1765653686707,0.1174183,90232.0,90231.0,0.41993]
[1765653700012,0.1174183,90232.0,90231.0,0.05913]
[1765653700212,0.1174183,90232.0,90231.0,0.44983634]
[1765653701315,0.1174183,90232.0,90231.0,0.5020707]
[1765653702304,0.05757,90232.0,90231.0,0.5020707]
[1765653704007,0.05757,90232.0,90231.0,0.5185907]
[1765653705018,0.05757,90232.0,90231.0,0.1577907]
[1765653705312,0.05757,90232.0,90231.0,0.5185907]
[1765653707014,0.05757,90232.0,90231.0,0.1577907]
[1765653707212,0.05757,90232.0,90231.0,0.5185907]
[1765653710016,0.05757,90232.0,90231.0,0.1577907]
[1765653710219,0.05757,90232.0,90231.0,0.5185907]
[1765653711727,0.05757,90232.0,90231.0,0.1577907]
[1765653712021,0.05757,90232.0,90231.0,0.5185907]
[1765653714722,0.05757,90232.0,90231.0,0.1577907]
[1765653714929,0.05757,90232.0,90231.0,0.5185907]
[1765653716120,0.05757,90232.0,90231.0,0.1577907]
[1765653716321,0.05757,90232.0,90231.0,0.5185907]
[1765653717023,0.05757,90232.0,90231.0,0.48868436]
[1765653725434,0.05757,90232.0,90231.0,0.12788436]
[1765653725732,0.05757,90232.0,90231.0,0.48868436]
[1765653727034,0.05757,90232.0,90231.0,0.15781885]
[1765653727235,0.05757,90232.0,90231.0,0.51861885]
[1765653731634,0.00552538,90238.0,90237.0,0.082511]
[1765653731635,0.06160538,90238.0,90237.0,0.082511]
[1765653731935,0.05608,90238.0,90237.0,0.082511]
[1765653741143,0.05608,90238.0,90237.0,0.067751]
[1765653764256,0.13590883,90238.0,90237.0,0.067751]
[1765653764443,0.05608,90238.0,90237.0,0.067751]
[1765653775463,0.05608,90238.0,90237.0,0.080911]
[1765653777966,0.08526781,90239.0,90238.0,0.0733]
[1765653778150,0.11514781,90239.0,90238.0,0.0733]
[1765653778358,0.14344781,90239.0,90238.0,0.0733]
[1765653779760,0.06361508,90239.0,90238.0,0.0733]
[1765653781868,0.07983273,90242.0,90241.0,0.05701]
[1765653782068,0.00016626,90246.0,90245.0,0.05701]
[1765653782973,0.00016626,90246.0,90245.0,0.06809]
[1765653783268,0.05818,90242.0,90241.0,0.41781]
[1765653783468,0.11798775,90242.0,90241.0,0.05701]
[1765653783777,0.05818,90242.0,90241.0,0.05701]
[1765653784281,0.05818,90242.0,90241.0,0.05801]
[1765653784477,0.05818,90242.0,90241.0,0.41881]
[1765653785564,0.05818,90242.0,90241.0,0.41981]
[1765653800783,0.11815401,90246.0,90245.0,0.05701]
[1765653800977,0.11815401,90246.0,90245.0,0.06809]
[1765653802486,0.05834626,90246.0,90245.0,0.06809]
[1765653803076,0.11811809,90246.0,90245.0,0.06809]
[1765653803485,0.05834626,90246.0,90245.0,0.06809]
[1765653808280,0.13817899,90246.0,90245.0,0.06809]
[1765653809496,0.1381235,90246.0,90245.0,0.06809]
[1765653811294,0.05834626,90246.0,90245.0,0.06809]
[1765653830110,0.07547626,90246.0,90245.0,0.06809]
[1765653830308,0.05834626,90246.0,90245.0,0.06809]
[1765653830810,0.06215626,90246.0,90245.0,0.01108]
[1765653831209,0.06215626,90246.0,90245.0,0.04083]
[1765653832412,0.06215626,90246.0,90245.0,0.0689]
[1765653833511,0.05834626,90246.0,90245.0,0.0689]
[1765653843511,0.06215626,90246.0,90245.0,0.0689]
[1765653846124,0.05834626,90246.0,90245.0,0.0689]
[1765653886160,0.05834626,90246.0,90245.0,0.0857]
[1765653888353,0.00016626,90246.0,90245.0,0.0857]
[1765653888651,0.05550626,90246.0,90245.0,0.0857]
[1765653927781,0.05550626,90246.0,90245.0,0.07462]
[1765653937290,0.05550626,90246.0,90245.0,0.05782]
[1765653937494,0.13533278,90246.0,90245.0,0.05782]
[1765653938190,0.05725,90240.0,90239.0,0.41952]
[1765653938596,0.13707447,90240.0,90239.0,0.41952]
[1765653939094,0.05725,90240.0,90239.0,0.41952]
[1765653939296,0.05725,90240.0,90239.0,0.42052]
[1765653940394,0.05725,90240.0,90239.0,0.42152]
[1765653942800,0.05725,90240.0,90239.0,0.06072]
[1765653951500,0.05725,90240.0,90239.0,0.42152]
[1765653953511,0.05725,90240.0,90239.0,0.06072]
[1765653953709,0.05725,90240.0,90239.0,0.42152]
[1765653956994,0.05725,90240.0,90239.0,0.43514]
[1765653961710,0.05725,90240.0,90239.0,0.07434]
[1765653982320,0.13698973,90240.0,90239.0,0.07434]
[1765653983525,0.13698973,90240.0,90239.0,0.07234]
[1765653987128,0.05725,90240.0,90239.0,0.07234]
[1765653997136,0.13707557,90240.0,90239.0,0.07234]
[1765654001337,0.05725,90240.0,90239.0,0.07234]
[1765654018465,0.05725,90240.0,90239.0,0.43314]
[1765654022762,0.06887,90228.0,90216.0,0.3608]
[1765654022968,0.12163161,90228.0,90216.0,0.3608]
[1765654023667,0.06887,90228.0,90216.0,0.3608]
[1765654024664,0.07009686,90229.0,90210.0,0.01711]
[1765654024665,0.05482,90211.0,90210.0,0.07407]
[1765654024860,0.41562,90211.0,90210.0,0.05696]
[1765654025062,0.41562,90211.0,90210.0,0.02894]
[1765654025963,0.41562,90211.0,90210.0,0.02994]
[1765654026271,0.41562,90211.0,90210.0,0.03094]
[1765654028174,0.50218192,90211.0,90210.0,0.03094]
[1765654029174,0.50764024,90211.0,90210.0,0.03094]
[1765654030364,0.56717858,90211.0,90210.0,0.03094]
[1765654031474,0.50764024,90211.0,90210.0,0.03094]
[1765654032372,0.14684024,90211.0,90210.0,0.03094]
[1765654032575,0.50764024,90211.0,90210.0,0.03094]
[1765654034068,0.14684024,90211.0,90210.0,0.03094]
[1765654034266,0.50764024,90211.0,90210.0,0.03094]
[1765654034575,0.50764024,90211.0,90210.0,0.002]
[1765654034772,0.56021256,90211.0,90210.0,0.002]
[1765654035271,0.50764024,90211.0,90210.0,0.002]
[1765654036676,0.56717858,90211.0,90210.0,0.002]
[1765654037179,0.50764024,90211.0,90210.0,0.002]
[1765654041467,0.14684024,90211.0,90210.0,0.002]
[1765654041682,0.50764024,90211.0,90210.0,0.002]
[1765654048785,0.14684024,90211.0,90210.0,0.002]
[1765654048971,0.50764024,90211.0,90210.0,0.002]
[1765654056878,0.60719573,90211.0,90210.0,0.002]
[1765654059590,0.24639573,90211.0,90210.0,0.002]
[1765654059890,0.60719573,90211.0,90210.0,0.002]
[1765654065699,0.50764024,90211.0,90210.0,0.002]
[1765654067484,0.14684024,90211.0,90210.0,0.002]
[1765654067687,0.50764024,90211.0,90210.0,0.002]
[1765654072402,0.14684024,90211.0,90210.0,0.002]
[1765654072706,0.50764024,90211.0,90210.0,0.002]
[1765654074003,0.51527024,90211.0,90210.0,0.002]
[1765654081901,0.51527024,90211.0,90210.0,0.03155]
[1765654082107,0.50764024,90211.0,90210.0,0.06109]
[1765654082306,0.50764024,90211.0,90210.0,0.07515]
[1765654082996,0.50764024,90211.0,90210.0,0.0862343]
[1765654087395,0.50764024,90211.0,90210.0,0.07515]
[1765654088197,0.50764024,90211.0,90210.0,0.06109]
[1765654094009,0.14684024,90211.0,90210.0,0.06109]
[1765654094311,0.50764024,90211.0,90210.0,0.06109]
[1765654096118,0.50764024,90211.0,90210.0,0.03155]
[1765654096412,0.14684024,90211.0,90210.0,0.03155]
[1765654096619,0.50764024,90211.0,90210.0,0.03155]
[1765654097115,0.6074131,90211.0,90210.0,0.03155]
[1765654098116,0.6074131,90211.0,90210.0,0.06109]
[1765654100016,0.50764024,90211.0,90210.0,0.06109]
[1765654101317,0.6074131,90211.0,90210.0,0.06109]
[1765654103919,0.6074131,90211.0,90210.0,0.03155]
[1765654105722,0.6074131,90211.0,90210.0,0.002]
[1765654108322,0.50764024,90211.0,90210.0,0.002]
[1765654123759,0.14684024,90211.0,90210.0,0.002]
[1765654123950,0.50764024,90211.0,90210.0,0.002]
[1765654126055,0.14684024,90211.0,90210.0,0.002]
[1765654126359,0.50764024,90211.0,90210.0,0.002]
[1765654129059,0.51645024,90211.0,90210.0,0.002]
[1765654134660,0.15565024,90211.0,90210.0,0.002]
[1765654134860,0.51645024,90211.0,90210.0,0.002]
[1765654136361,0.15565024,90211.0,90210.0,0.002]
[1765654136557,0.51645024,90211.0,90210.0,0.002]
[1765654145568,0.15565024,90211.0,90210.0,0.002]
[1765654145863,0.51645024,90211.0,90210.0,0.002]
[1765654154364,0.15565024,90211.0,90210.0,0.002]
[1765654154564,0.51645024,90211.0,90210.0,0.002]
[1765654156478,0.15565024,90211.0,90210.0,0.002]
[1765654156776,0.51645024,90211.0,90210.0,0.002]
[1765654162679,0.15565024,90211.0,90210.0,0.002]
[1765654162876,0.51645024,90211.0,90210.0,0.002]
[1765654164380,0.15565024,90211.0,90210.0,0.002]
[1765654164581,0.51645024,90211.0,90210.0,0.002]
[1765654166683,0.15565024,90211.0,90210.0,0.002]
[1765654166986,0.51645024,90211.0,90210.0,0.002]
[1765654170778,0.15565024,90211.0,90210.0,0.002]
[1765654170985,0.51645024,90211.0,90210.0,0.002]
[1765654171487,0.15565024,90211.0,90210.0,0.002]
[1765654171983,0.51645024,90211.0,90210.0,0.002]
[1765654172785,0.15565024,90211.0,90210.0,0.002]
[1765654173085,0.51645024,90211.0,90210.0,0.002]
[1765654173487,0.15565024,90211.0,90210.0,0.002]
[1765654173685,0.51645024,90211.0,90210.0,0.002]
[1765654177585,0.65618602,90211.0,90210.0,0.002]
[1765654183692,0.29538602,90211.0,90210.0,0.002]
[1765654183882,0.65618602,90211.0,90210.0,0.002]
[1765654184693,0.29538602,90211.0,90210.0,0.002]
[1765654184893,0.65618602,90211.0,90210.0,0.002]
[1765654187394,0.51645024,90211.0,90210.0,0.002]
[1765654196403,0.15565024,90211.0,90210.0,0.002]
[1765654196602,0.51645024,90211.0,90210.0,0.002]
[1765654198005,0.15565024,90211.0,90210.0,0.002]
[1765654198207,0.51645024,90211.0,90210.0,0.002]
[1765654198704,0.15565024,90211.0,90210.0,0.002]
[1765654198906,0.51645024,90211.0,90210.0,0.002]
[1765654199606,0.15565024,90211.0,90210.0,0.002]
[1765654199807,0.51645024,90211.0,90210.0,0.002]
[1765654201211,0.51645024,90211.0,90210.0,0.03073]
[1765654202011,0.51645024,90211.0,90210.0,0.05894]
[1765654207811,0.51645024,90211.0,90210.0,0.03073]
[1765654209513,0.51645024,90211.0,90210.0,0.05894]
[1765654214515,0.15565024,90211.0,90210.0,0.05894]
[1765654217518,0.29538602,90211.0,90210.0,0.05894]
[1765654224208,0.15565024,90211.0,90210.0,0.05894]
[1765654230532,0.14684024,90211.0,90210.0,0.05894]
[1765654261849,0.14684024,90211.0,90210.0,0.07139]
[1765654262146,0.14894024,90211.0,90210.0,0.07139]
[1765654262936,0.14894024,90211.0,90210.0,0.05894]
[1765654267471,0.28867602,90211.0,90210.0,0.05894]
[1765654277581,0.14894024,90211.0,90210.0,0.05894]
[1765654325713,0.64258024,90211.0,90210.0,0.05894]
[1765654343019,0.64258024,90211.0,90210.0,0.05694]
[1765654351718,0.74238442,90211.0,90210.0,0.05694]
[1765654352622,0.64258024,90211.0,90210.0,0.05694]
[1765654353310,0.74238194,90211.0,90210.0,0.05694]
[1765654354522,0.24874194,90211.0,90210.0,0.05694]
[1765654357333,0.14894024,90211.0,90210.0,0.05694]
[1765654364843,0.09979871,90211.0,90210.0,0.06922]
[1765654365142,0.00016626,90220.0,90219.0,0.0658321]
[1765654365348,0.11353129,90234.0,90233.0,0.0658304]
[1765654365540,0.34792545,90240.0,90239.0,0.0658296]
[1765654365541,0.08867905,90240.0,90239.0,0.0658296]
[1765654365746,0.56053241,90248.0,90247.0,0.0658286]
[1765654365747,0.59372623,90248.0,90247.0,0.0658286]
[1765654366041,0.39399382,90248.0,90247.0,0.0658286]
[1765654366447,0.03319382,90248.0,90247.0,0.0658286]
[1765654366637,0.10714736,90248.0,90247.0,0.0658286]
[1765654367039,0.02754,90248.0,90247.0,0.0658286]
[1765654367235,0.07960736,90255.0,90254.0,0.05475]
[1765654367546,0.00016626,90257.0,90256.0,0.05475]
[1765654367738,0.00016626,90257.0,90256.0,0.41555]
[1765654368455,0.11512428,90274.0,90273.0,0.05475]
[1765654369347,0.0555,90274.0,90273.0,0.05475]
[1765654369553,0.0565,90274.0,90273.0,0.05475]
[1765654389260,0.07349,90274.0,90273.0,0.05475]
[1765654392076,0.0565,90274.0,90273.0,0.05475]
[1765654392261,0.0555,90274.0,90273.0,0.05475]
[1765654397966,0.0555,90274.0,90273.0,0.41555]
[1765654400060,0.07249,90274.0,90273.0,0.41555]
[1765654400259,0.07249,90274.0,90273.0,0.38843]
[1765654400470,0.02258835,90278.0,90264.0,0.05901616]
[1765654400471,0.05716,90265.0,90264.0,0.05901616]
[1765654401872,0.05716,90265.0,90264.0,0.06201616]